lending/lending_fUSD_20250121
["ID","MTS","AMOUNT","RATE_DAILY","PERIOD"]
[349827969,1737453078044,-500.0,0.00021095,2]
[349827970,1737453078055,-500.0,0.00021095,2]
[349827971,1737453078065,-576.69,0.00021095,2]
[349827972,1737453078075,-500.0,0.00021095,2]
[349827973,1737453078084,-500.0,0.00021095,2]
[349827974,1737453078093,-500.0,0.00021095,2]
[349827975,1737453078102,-500.0,0.00021095,2]
[349827976,1737453078111,-500.0,0.00021095,2]
[349827977,1737453078121,-500.0,0.00021095,2]
[349827978,1737453078132,-500.0,0.00021095,2]
[349827979,1737453078142,-500.0,0.00021095,2]
[349827980,1737453078152,-500.0,0.00021095,2]
[349827981,1737453078163,-300.0,0.00021095,2]
[349827982,1737453078173,-500.0,0.00021095,2]
[349827983,1737453078190,-500.0,0.00021095,2]
[349827984,1737453078200,-705.57,0.00021095,2]
[349827985,1737453078210,-508.34,0.00021095,2]
[349827986,1737453078220,-788.13,0.00021095,2]
[349827987,1737453078231,-500.0,0.00021095,2]
[349827988,1737453078241,-1172.49,0.00021095,2]
[349827989,1737453078251,-507.49,0.00021095,2]
[349827990,1737453078261,-500.0,0.00021095,2]
[349827991,1737453078271,-761.5,0.00021095,2]
[349827992,1737453078281,-500.0,0.00021095,2]
[349827993,1737453078292,-500.0,0.00021095,2]
[349827994,1737453078302,-500.0,0.00021095,2]
[349827995,1737453078312,-3672.11,0.00021095,2]
[349827996,1737453078322,-500.0,0.00021095,2]
[349827997,1737453078332,-2841.84,0.00021095,2]
[349827998,1737453078342,-1974.21,0.00021095,2]
[349827999,1737453078351,-500.0,0.00021095,2]
[349828000,1737453078361,-1158.66,0.00021095,2]
[349828001,1737453078370,-628.17,0.00021095,2]
[349828002,1737453078380,-910.49,0.00021095,2]
[349828003,1737453078390,-500.0,0.00021095,2]
[349828004,1737453078401,-8504.98,0.00021095,2]
[349828005,1737453078411,-1875.9,0.00021095,2]
[349828006,1737453078421,-500.0,0.00021095,2]
[349828007,1737453078438,-1593.64,0.00021095,2]
[349828008,1737453078450,-826.77,0.00021095,2]
[349828009,1737453078460,-304.80053579,0.00021095,2]
[349828010,1737453078471,-648.73,0.00021095,2]
[349828011,1737453078482,-1235.86,0.00021095,2]
[349828012,1737453078493,-500.0,0.00021095,2]
[349828013,1737453078503,-500.0,0.00021095,2]
[349828014,1737453078513,-1175.52,0.00021095,2]
[349828015,1737453078523,-500.0,0.00021095,2]
[349828016,1737453078533,-500.0,0.00021095,2]
[349828017,1737453078542,-500.0,0.00021095,2]
[349828018,1737453078553,-1631.61,0.00021095,2]
[349828019,1737453078564,-651.5,0.00021095,2]
[349828020,1737453078575,-500.0,0.00021095,2]
[349828021,1737453078584,-696.16,0.00021095,2]
[349828022,1737453078593,-802.48,0.00021095,2]
[349828023,1737453078603,-500.0,0.00021095,2]
[349828024,1737453078613,-802.07,0.00021095,2]
[349828025,1737453078623,-500.0,0.00021095,2]
[349828026,1737453078634,-500.0,0.00021095,2]
[349828027,1737453078644,-1285.14,0.00021095,2]
[349828028,1737453078655,-1752.0,0.00021095,2]
[349828029,1737453078666,-500.0,0.00021095,2]
[349828030,1737453078676,-975.02,0.00021095,2]
[349828031,1737453078690,-500.0,0.00021095,2]
[349828032,1737453078700,-500.0,0.00021095,2]
[349828033,1737453078710,-500.0,0.00021095,2]
[349828034,1737453078721,-1426.9,0.00021095,2]
[349828035,1737453078730,-500.0,0.00021095,2]
[349828036,1737453078740,-500.0,0.00021095,2]
[349828037,1737453078756,-500.0,0.00021095,2]
[349828038,1737453078768,-500.0,0.00021095,2]
[349828039,1737453078777,-500.0,0.00021095,2]
[349828040,1737453078787,-574.98,0.00021095,2]
[349828041,1737453078798,-500.0,0.00021095,2]
[349828042,1737453078808,-515.49,0.00021095,2]
[349828043,1737453078817,-500.0,0.00021095,2]
[349828044,1737453078827,-500.0,0.00021095,2]
[349828045,1737453078837,-500.0,0.00021095,2]
[349828046,1737453078847,-1497.19,0.00021095,2]
[349828047,1737453078857,-1061.57,0.00021095,2]
[349828048,1737453078867,-500.0,0.00021095,2]
[349828049,1737453078876,-500.0,0.00021095,2]
[349828050,1737453078886,-500.0,0.00021095,2]
[349828051,1737453078895,-1810.13,0.00021095,2]
[349828052,1737453078906,-500.0,0.00021095,2]
[349828053,1737453078915,-500.0,0.00021095,2]
[349828054,1737453078925,-794.2,0.00021095,2]
[349828055,1737453078938,-2047.13,0.00021095,2]
[349828056,1737453078948,-2863.94,0.00021095,2]
[349828057,1737453078957,-772.25,0.00021095,2]
[349828058,1737453078967,-1251.75,0.00021095,2]
[349828059,1737453078977,-500.0,0.00021095,2]
[349828060,1737453078986,-500.0,0.00021095,2]
[349828061,1737453078996,-660.36,0.00021095,2]
[349828062,1737453079006,-500.0,0.00021095,2]
[349828063,1737453079016,-616.64,0.00021095,2]
[349828064,1737453079026,-1546.15,0.00021095,2]
[349828065,1737453079036,-500.0,0.00021095,2]
[349828066,1737453079046,-500.0,0.00021095,2]
[349828067,1737453079056,-1902.27,0.00021095,2]
[349828068,1737453079066,-500.0,0.00021095,2]
[349828069,1737453079076,-500.0,0.00021095,2]
[349828070,1737453079086,-2420.73,0.00021095,2]
[349828071,1737453079096,-1018.36,0.00021095,2]
[349828072,1737453079106,-500.0,0.00021095,2]
[349828073,1737453079116,-500.0,0.00021095,2]
[349828074,1737453079126,-500.0,0.00021095,2]
[349828075,1737453079136,-582.48,0.00021095,2]
[349828076,1737453079146,-3026.82,0.00021095,2]
[349828077,1737453079157,-500.0,0.00021095,2]
[349828078,1737453079167,-1503.31,0.00021095,2]
[349828079,1737453079178,-500.0,0.00021095,2]
[349828080,1737453079190,-1719.86,0.00021095,2]
[349828081,1737453079201,-500.0,0.00021095,2]
[349828082,1737453079211,-500.0,0.00021095,2]
[349828083,1737453079222,-544.81,0.00021095,2]
[349828084,1737453079232,-500.0,0.00021095,2]
[349828085,1737453079242,-500.0,0.00021095,2]
[349828086,1737453079252,-582.92,0.00021095,2]
[349828087,1737453079262,-500.0,0.00021095,2]
[349828088,1737453079272,-1092.14,0.00021095,2]
[349828089,1737453079281,-500.0,0.00021095,2]
[349828090,1737453079291,-161.8582957,0.00021095,2]
[349828091,1737453079301,-500.0,0.00021095,2]
[349828092,1737453079312,-1250.96,0.00021095,2]
[349828093,1737453079322,-1136.38,0.00021095,2]
[349828094,1737453079333,-1590.94,0.00021095,2]
[349828095,1737453079343,-500.0,0.00021095,2]
[349828096,1737453079353,-500.0,0.00021095,2]
[349828097,1737453079363,-2747.31,0.00021095,2]
[349828098,1737453079373,-500.0,0.00021095,2]
[349828099,1737453079384,-500.0,0.00021095,2]
[349828100,1737453079394,-3033.52,0.00021095,2]
[349828101,1737453079404,-2010.66,0.00021095,2]
[349828102,1737453079414,-500.0,0.00021095,2]
[349828103,1737453079424,-500.0,0.00021095,2]
[349828104,1737453079437,-685.44,0.00021095,2]
[349828105,1737453079447,-973.66,0.00021095,2]
[349828106,1737453079458,-500.0,0.00021095,2]
[349828107,1737453079468,-1123.99,0.00021095,2]
[349828108,1737453079478,-589.01,0.00021095,2]
[349828109,1737453079487,-500.0,0.00021095,2]
[349828110,1737453079497,-1065.57,0.00021095,2]
[349828111,1737453079507,-500.0,0.00021095,2]
[349828112,1737453079517,-500.0,0.00021095,2]
[349828113,1737453079526,-500.0,0.00021095,2]
[349828114,1737453079536,-984.06,0.00021095,2]
[349828115,1737453079545,-1101.11,0.00021095,2]
[349828116,1737453079556,-2866.42,0.00021095,2]
[349828117,1737453079566,-771.9,0.00021095,2]
[349828118,1737453079576,-958.34,0.00021095,2]
[349828119,1737453079586,-500.0,0.00021095,2]
[349828120,1737453079595,-692.7,0.00021095,2]
[349828121,1737453079605,-731.13,0.00021095,2]
[349828122,1737453079615,-500.0,0.00021095,2]
[349828123,1737453079625,-500.0,0.00021095,2]
[349828124,1737453079634,-701.64,0.00021095,2]
[349828125,1737453079644,-904.45,0.00021095,2]
[349828126,1737453079653,-1764.52,0.00021095,2]
[349828127,1737453079663,-500.0,0.00021095,2]
[349828128,1737453079673,-500.0,0.00021095,2]
[349828129,1737453079685,-500.0,0.00021095,2]
[349828130,1737453079695,-895.45,0.00021095,2]
[349828131,1737453079705,-1026.43,0.00021095,2]
[349828132,1737453079715,-500.0,0.00021095,2]
[349828133,1737453079726,-2756.16,0.00021095,2]
[349828134,1737453079736,-1553.04,0.00021095,2]
[349828135,1737453079746,-500.0,0.00021095,2]
[349828136,1737453079757,-500.0,0.00021095,2]
[349828137,1737453079768,-500.0,0.00021095,2]
[349828138,1737453079778,-2046.98,0.00021095,2]
[349828139,1737453079787,-500.0,0.00021095,2]
[349828140,1737453079798,-2545.78,0.00021095,2]
[349828141,1737453079808,-500.0,0.00021095,2]
[349828142,1737453079817,-2648.9,0.00021095,2]
[349828143,1737453079828,-500.0,0.00021095,2]
[349828144,1737453079838,-500.0,0.00021095,2]
[349828145,1737453079849,-771.88,0.00021095,2]
[349828146,1737453079859,-500.0,0.00021095,2]
[349828147,1737453079869,-500.0,0.00021095,2]
[349828148,1737453079878,-1252.0,0.00021095,2]
[349828149,1737453079888,-2167.31,0.00021095,2]
[349828150,1737453079897,-500.0,0.00021095,2]
[349828151,1737453079907,-500.0,0.00021095,2]
[349828152,1737453079917,-687.19,0.00021095,2]
[349828153,1737453079926,-1932.68,0.00021095,2]
[349828154,1737453079938,-500.0,0.00021095,2]
[349828155,1737453079948,-500.0,0.00021095,2]
[349828156,1737453079957,-620.48,0.00021095,2]
[349828157,1737453079967,-500.0,0.00021095,2]
[349828158,1737453079976,-37706.63317993,0.00021156,2]
[349828159,1737453079986,-150.0,0.00021162,2]
[349828160,1737453079995,-298.01,0.00021178,2]
[349828161,1737453080004,-596.02,0.00021178,2]
[349828162,1737453080013,-981.79,0.00021178,2]
[349828163,1737453080022,-298.01,0.00021178,2]
[349828164,1737453080031,-150.0,0.00021181,2]
[349828165,1737453080040,-200.35494415,0.00021186,2]
[349828166,1737453080050,-150.0,0.00021186,2]
[349828167,1737453080060,-12829.19937418,0.00021195,2]
[349828168,1737453080070,-1447.43,0.00021195,2]
[349828169,1737453080079,-150.0,0.00021231,2]
[349828170,1737453080089,-537.04,0.0002126,2]
[349828171,1737453080098,-500.0,0.00021268,2]
[349828172,1737453080108,-591.79,0.00021268,2]
[349828173,1737453080118,-898.45,0.00021268,2]
[349828174,1737453080128,-1154.75,0.00021268,2]
[349828175,1737453080138,-500.0,0.00021268,2]
[349828176,1737453080147,-1000.0,0.00021268,2]
[349828177,1737453080158,-1093.7,0.00021268,2]
[349828178,1737453080168,-545.47,0.00021268,2]
[349828179,1737453080177,-500.0,0.00021268,2]
[349828180,1737453080189,-1476.07,0.00021268,2]
[349828181,1737453080328,-150.0,0.00021272,2]
[349828182,1737453080339,-150.0,0.00021283,2]
[349828183,1737453080350,-150.0,0.00021332,2]
[349828184,1737453080359,-200.35494415,0.00021364,2]
[349828185,1737453080368,-500.0,0.00021369,2]
[349828186,1737453080378,-500.0,0.00021369,2]
[349828187,1737453080387,-1852.7,0.00021369,2]
[349828188,1737453080397,-500.0,0.00021369,2]
[349828189,1737453080406,-500.0,0.00021369,2]
[349828190,1737453080415,-500.0,0.00021369,2]
[349828191,1737453080425,-500.0,0.00021369,2]
[349828192,1737453080436,-570.48708513,0.00021369,2]
[349828193,1737453080446,-500.0,0.00021369,2]
[349828194,1737453080456,-500.0,0.00021369,2]
[349828195,1737453080466,-500.0,0.00021369,2]
[349828196,1737453080476,-500.0,0.00021369,2]
[349828197,1737453080486,-575.72,0.00021369,2]
[349828198,1737453080496,-500.0,0.00021369,2]
[349828199,1737453080505,-500.0,0.00021369,2]
[349828200,1737453080515,-769.26,0.00021369,2]
[349828201,1737453080524,-500.0,0.00021369,2]
[349828202,1737453080534,-500.0,0.00021369,2]
[349828203,1737453080543,-500.0,0.00021369,2]
[349828204,1737453080552,-500.0,0.00021369,2]
[349828205,1737453080561,-577.58,0.00021369,2]
[349828206,1737453080570,-500.0,0.00021369,2]
[349828207,1737453080580,-500.0,0.00021369,2]
[349828208,1737453080589,-500.0,0.00021369,2]
[349828209,1737453080599,-500.0,0.00021369,2]
[349828210,1737453080608,-496.2,0.00021369,2]
[349828211,1737453080618,-500.0,0.00021369,2]
[349828212,1737453080627,-500.0,0.00021369,2]
[349828213,1737453080636,-500.0,0.00021369,2]
[349828214,1737453080645,-500.0,0.00021369,2]
[349828215,1737453080654,-601.11481853,0.00021369,2]
[349828216,1737453080664,-500.0,0.00021369,2]
[349828217,1737453080673,-500.0,0.00021369,2]
[349828218,1737453080684,-519.89,0.00021369,2]
[349828219,1737453080693,-522.63,0.00021369,2]
[349828220,1737453080703,-500.0,0.00021369,2]
[349828221,1737453080712,-500.0,0.00021369,2]
[349828222,1737453080721,-500.0,0.00021369,2]
[349828223,1737453080731,-500.0,0.00021369,2]
[349828224,1737453080740,-1055.98,0.00021369,2]
[349828225,1737453080750,-922.8,0.00021369,2]
[349828226,1737453080762,-500.0,0.00021369,2]
[349828227,1737453080772,-585.37564464,0.00021369,2]
[349828228,1737453080781,-500.0,0.00021369,2]
[349828229,1737453080790,-698.92,0.00021369,2]
[349828230,1737453080801,-500.0,0.00021369,2]
[349828231,1737453080810,-500.0,0.00021369,2]
[349828232,1737453080819,-500.0,0.00021369,2]
[349828233,1737453080830,-500.0,0.00021369,2]
[349828234,1737453080839,-500.0,0.00021369,2]
[349828235,1737453080849,-626.71334353,0.00021369,2]
[349828236,1737453080858,-500.0,0.00021369,2]
[349828237,1737453080867,-500.0,0.00021369,2]
[349828238,1737453080877,-500.0,0.00021369,2]
[349828239,1737453080886,-500.0,0.00021369,2]
[349828240,1737453080896,-500.0,0.00021369,2]
[349828241,1737453080905,-949.13,0.00021369,2]
[349828242,1737453080915,-500.0,0.00021369,2]
[349828243,1737453080924,-632.61,0.00021369,2]
[349828244,1737453080934,-500.0,0.00021369,2]
[349828245,1737453080943,-500.0,0.00021369,2]
[349828246,1737453080953,-500.0,0.00021369,2]
[349828247,1737453080963,-500.0,0.00021369,2]
[349828248,1737453080972,-500.0,0.00021369,2]
[349828249,1737453080981,-500.0,0.00021369,2]
[349828250,1737453080991,-500.37,0.00021369,2]
[349828251,1737453081001,-515.06812098,0.00021369,2]
[349828252,1737453081010,-534.504669,0.00021369,2]
[349828253,1737453081020,-602.49,0.00021369,2]
[349828254,1737453081030,-500.0,0.00021369,2]
[349828255,1737453081040,-500.0,0.00021369,2]
[349828256,1737453081050,-500.0,0.00021369,2]
[349828257,1737453081060,-335.59584646,0.00021369,2]
[349828258,1737453081070,-500.0,0.00021369,2]
[349828259,1737453081080,-500.0,0.00021369,2]
[349828260,1737453081090,-855.720455,0.00021369,2]
[349828261,1737453081100,-515.35,0.00021369,2]
[349828262,1737453081110,-500.0,0.00021369,2]
[349828263,1737453081119,-158.602003,0.00021369,2]
[349828264,1737453081129,-500.0,0.00021369,2]
[349828265,1737453081139,-500.0,0.00021369,2]
[349828266,1737453081149,-500.0,0.00021369,2]
[349828267,1737453081159,-500.0,0.00021369,2]
[349828268,1737453081169,-500.0,0.00021369,2]
[349828269,1737453081180,-500.0,0.00021369,2]
[349828270,1737453081190,-500.0,0.00021369,2]
[349828271,1737453081200,-500.0,0.00021369,2]
[349828272,1737453081209,-500.0,0.00021369,2]
[349828273,1737453081219,-500.0,0.00021369,2]
[349828274,1737453081228,-500.0,0.00021369,2]
[349828275,1737453081238,-526.06,0.00021369,2]
[349828276,1737453081247,-500.0,0.00021369,2]
[349828277,1737453081257,-500.0,0.00021369,2]
[349828278,1737453081267,-500.0,0.00021369,2]
[349828279,1737453081276,-500.0,0.00021369,2]
[349828280,1737453081286,-521.78487872,0.00021369,2]
[349828281,1737453081295,-500.0,0.00021369,2]
[349828282,1737453081305,-233.95473078,0.00021369,2]
[349828283,1737453081314,-608.3,0.00021369,2]
[349828284,1737453081324,-662.46,0.00021369,2]
[349828285,1737453081334,-500.0,0.00021369,2]
[349828286,1737453081344,-630.94,0.00021369,2]
[349828287,1737453081354,-500.0,0.00021369,2]
[349828288,1737453081365,-500.0,0.00021369,2]
[349828289,1737453081374,-500.0,0.00021369,2]
[349828290,1737453081384,-500.0,0.00021369,2]
[349828291,1737453081394,-478.02307022,0.00021369,2]
[349828292,1737453081403,-547.52,0.00021369,2]
[349828293,1737453081413,-500.0,0.00021369,2]
[349828294,1737453081423,-500.0,0.00021369,2]
[349828295,1737453081435,-623.36,0.00021369,2]
[349828296,1737453081444,-500.0,0.00021369,2]
[349828297,1737453081455,-500.0,0.00021369,2]
[349828298,1737453081465,-500.0,0.00021369,2]
[349828299,1737453081475,-500.0,0.00021369,2]
[349828300,1737453081485,-500.0,0.00021369,2]
[349828301,1737453081495,-576.69,0.00021369,2]
[349828302,1737453081504,-500.0,0.00021369,2]
[349828303,1737453081514,-500.0,0.00021369,2]
[349828304,1737453081524,-500.0,0.00021369,2]
[349828305,1737453081533,-599.69840757,0.00021369,2]
[349828306,1737453081543,-500.0,0.00021369,2]
[349828307,1737453081553,-500.0,0.00021369,2]
[349828308,1737453081563,-500.0,0.00021369,2]
[349828309,1737453081573,-500.0,0.00021369,2]
[349828310,1737453081583,-500.0,0.00021369,2]
[349828311,1737453081592,-300.0,0.00021369,2]
[349828312,1737453081602,-621.39429704,0.00021369,2]
[349828313,1737453081612,-705.57,0.00021369,2]
[349828314,1737453081621,-508.34,0.00021369,2]
[349828315,1737453081631,-788.13,0.00021369,2]
[349828316,1737453081641,-500.0,0.00021369,2]
[349828317,1737453081651,-1172.49,0.00021369,2]
[349828318,1737453081663,-507.49,0.00021369,2]
[349828319,1737453081673,-500.0,0.00021369,2]
[349828320,1737453081685,-761.5,0.00021369,2]
[349828321,1737453081695,-500.0,0.00021369,2]
[349828322,1737453081705,-500.0,0.00021369,2]
[349828323,1737453081714,-500.0,0.00021369,2]
[349828324,1737453081723,-3672.11,0.00021369,2]
[349828325,1737453081732,-500.0,0.00021369,2]
[349828326,1737453081742,-2841.84,0.00021369,2]
[349828327,1737453081751,-1974.21,0.00021369,2]
[349828328,1737453081764,-190.8150454,0.00021369,2]
[349828329,1737453081773,-1158.66,0.00021369,2]
[349828330,1737453081783,-628.17,0.00021369,2]
[349828331,1737453081792,-910.49,0.00021369,2]
[349828332,1737453081802,-500.0,0.00021369,2]
[349828333,1737453081812,-8504.98,0.00021369,2]
[349828334,1737453081821,-1875.9,0.00021369,2]
[349828335,1737453081832,-500.0,0.00021369,2]
[349828336,1737453081842,-1593.64,0.00021369,2]
[349828337,1737453081852,-826.77,0.00021369,2]
[349828338,1737453081862,-648.73,0.00021369,2]
[349828339,1737453081871,-1235.86,0.00021369,2]
[349828340,1737453081881,-500.0,0.00021369,2]
[349828341,1737453081890,-500.0,0.00021369,2]
[349828342,1737453081900,-1175.52,0.00021369,2]
[349828343,1737453081910,-500.0,0.00021369,2]
[349828344,1737453081919,-500.0,0.00021369,2]
[349828345,1737453081928,-500.0,0.00021369,2]
[349828346,1737453081939,-1631.61,0.00021369,2]
[349828347,1737453081949,-651.5,0.00021369,2]
[349828348,1737453081959,-500.0,0.00021369,2]
[349828349,1737453081968,-696.16,0.00021369,2]
[349828350,1737453081978,-802.48,0.00021369,2]
[349828351,1737453081988,-500.0,0.00021369,2]
[349828352,1737453081997,-802.07,0.00021369,2]
[349828353,1737453082007,-500.0,0.00021369,2]
[349828354,1737453082016,-500.0,0.00021369,2]
[349828355,1737453082025,-1285.14,0.00021369,2]
[349828356,1737453082034,-1752.0,0.00021369,2]
[349828357,1737453082043,-314.26772388,0.00021369,2]
[349828358,1737453082053,-975.02,0.00021369,2]
[349828359,1737453082062,-500.0,0.00021369,2]
[349828360,1737453082072,-500.0,0.00021369,2]
[349828361,1737453082081,-500.0,0.00021369,2]
[349828362,1737453082091,-1426.9,0.00021369,2]
[349828363,1737453082100,-500.0,0.00021369,2]
[349828364,1737453082109,-500.0,0.00021369,2]
[349828365,1737453082119,-500.0,0.00021369,2]
[349828366,1737453082128,-500.0,0.00021369,2]
[349828367,1737453082137,-500.0,0.00021369,2]
[349828368,1737453082147,-574.98,0.00021369,2]
[349828369,1737453082156,-500.0,0.00021369,2]
[349828370,1737453082166,-515.49,0.00021369,2]
[349828371,1737453082175,-500.0,0.00021369,2]
[349828372,1737453082185,-500.0,0.00021369,2]
[349828373,1737453082194,-500.0,0.00021369,2]
[349828374,1737453082204,-1497.19,0.00021369,2]
[349828375,1737453082214,-1061.57,0.00021369,2]
[349828376,1737453082223,-500.0,0.00021369,2]
[349828377,1737453082233,-500.0,0.00021369,2]
[349828378,1737453082243,-500.0,0.00021369,2]
[349828379,1737453082252,-1810.13,0.00021369,2]
[349828380,1737453082263,-500.0,0.00021369,2]
[349828381,1737453082272,-512.13213624,0.00021369,2]
[349828382,1737453082282,-794.2,0.00021369,2]
[349828383,1737453082292,-2047.13,0.00021369,2]
[349828384,1737453082301,-2863.94,0.00021369,2]
[349828385,1737453082311,-1251.75,0.00021369,2]
[349828386,1737453082320,-772.25,0.00021369,2]
[349828387,1737453082329,-500.0,0.00021369,2]
[349828388,1737453082339,-500.0,0.00021369,2]
[349828389,1737453082349,-660.36,0.00021369,2]
[349828390,1737453082359,-500.0,0.00021369,2]
[349828391,1737453082368,-616.64,0.00021369,2]
[349828392,1737453082378,-1546.15,0.00021369,2]
[349828393,1737453082388,-500.0,0.00021369,2]
[349828394,1737453082399,-1902.27,0.00021369,2]
[349828395,1737453082408,-500.0,0.00021369,2]
[349828396,1737453082417,-2420.73,0.00021369,2]
[349828397,1737453082427,-1018.36,0.00021369,2]
[349828398,1737453082438,-500.0,0.00021369,2]
[349828399,1737453082448,-500.0,0.00021369,2]
[349828400,1737453082457,-500.0,0.00021369,2]
[349828401,1737453082467,-582.48,0.00021369,2]
[349828402,1737453082476,-3026.82,0.00021369,2]
[349828403,1737453082487,-606.50136615,0.00021369,2]
[349828404,1737453082496,-1503.31,0.00021369,2]
[349828405,1737453082505,-1719.86,0.00021369,2]
[349828406,1737453082515,-500.0,0.00021369,2]
[349828407,1737453082524,-500.0,0.00021369,2]
[349828408,1737453082534,-544.81,0.00021369,2]
[349828409,1737453082543,-500.0,0.00021369,2]
[349828410,1737453082553,-500.0,0.00021369,2]
[349828411,1737453082562,-582.92,0.00021369,2]
[349828412,1737453082571,-500.0,0.00021369,2]
[349828413,1737453082581,-1092.14,0.00021369,2]
[349828414,1737453082590,-500.0,0.00021369,2]
[349828415,1737453082599,-1250.96,0.00021369,2]
[349828416,1737453082609,-1136.38,0.00021369,2]
[349828417,1737453082619,-1590.94,0.00021369,2]
[349828418,1737453082628,-500.0,0.00021369,2]
[349828419,1737453082637,-500.0,0.00021369,2]
[349828420,1737453082647,-2747.31,0.00021369,2]
[349828421,1737453082657,-500.0,0.00021369,2]
[349828422,1737453082666,-500.0,0.00021369,2]
[349828423,1737453082676,-3033.52,0.00021369,2]
[349828424,1737453082686,-2010.66,0.00021369,2]
[349828425,1737453082695,-500.0,0.00021369,2]
[349828426,1737453082705,-216.83360826,0.00021369,2]
[349828427,1737453082715,-685.44,0.00021369,2]
[349828428,1737453082724,-973.66,0.00021369,2]
[349828429,1737453082733,-500.0,0.00021369,2]
[349828430,1737453082743,-1123.99,0.00021369,2]
[349828431,1737453082755,-589.01,0.00021369,2]
[349828432,1737453082765,-1065.57,0.00021369,2]
[349828433,1737453082774,-500.0,0.00021369,2]
[349828434,1737453082784,-500.0,0.00021369,2]
[349828435,1737453082793,-500.0,0.00021369,2]
[349828436,1737453082803,-984.06,0.00021369,2]
[349828437,1737453082813,-1101.11,0.00021369,2]
[349828438,1737453082822,-2866.42,0.00021369,2]
[349828439,1737453082832,-771.9,0.00021369,2]
[349828440,1737453082841,-958.34,0.00021369,2]
[349828441,1737453082851,-500.0,0.00021369,2]
[349828442,1737453082860,-165.582448,0.00021369,2]
[349828443,1737453082869,-692.7,0.00021369,2]
[349828444,1737453082879,-731.13,0.00021369,2]
[349828445,1737453082888,-519.24074904,0.00021369,2]
[349828446,1737453082897,-500.0,0.00021369,2]
[349828447,1737453082907,-701.64,0.00021369,2]
[349828448,1737453082916,-904.45,0.00021369,2]
[349828449,1737453082926,-1764.52,0.00021369,2]
[349828450,1737453082936,-500.0,0.00021369,2]
[349828451,1737453082945,-500.0,0.00021369,2]
[349828452,1737453082954,-500.0,0.00021369,2]
[349828453,1737453082964,-895.45,0.00021369,2]
[349828454,1737453082974,-1026.43,0.00021369,2]
[349828455,1737453082983,-500.0,0.00021369,2]
[349828456,1737453082993,-2756.16,0.00021369,2]
[349828457,1737453083001,-1553.04,0.00021369,2]
[349828458,1737453083011,-264.50407099,0.00021369,2]
[349828459,1737453083020,-500.0,0.00021369,2]
[349828460,1737453083029,-2046.98,0.00021369,2]
[349828461,1737453083039,-500.0,0.00021369,2]
[349828462,1737453083048,-2545.78,0.00021369,2]
[349828463,1737453083058,-500.0,0.00021369,2]
[349828464,1737453083067,-2648.9,0.00021369,2]
[349828465,1737453083077,-500.0,0.00021369,2]
[349828466,1737453083086,-500.0,0.00021369,2]
[349828467,1737453083096,-771.88,0.00021369,2]
[349828468,1737453083105,-500.0,0.00021369,2]